[Event "Prague Festival Masters 2024"]
[Site "Prague"]
[Date "2024.03.07"]
[Round "9.3"]
[White "Praggnanandhaa R"]
[Black "Navara, David"]
[Result "1/2-1/2"]
[ECO "A29"]
[WhiteElo "2743"]
[BlackElo "2679"]
[Annotator "TA"]
[PlyCount "118"]
[EventDate "2024.02.22"]
[EventType "tourn"]
[EventCountry "CZE"]
[SourceTitle "playchess.com"]
[Source "ChessBase"]
[SourceQuality "1"]
[TimeControl "40/5400+30:1800+30"]

{[%evp 29,118,-22,-28,-18,-33,-31,-5,-14,37,34,51,50,50,48,37,37,61,27,106,50,46,54,56,42,55,60,52,45,59,47,66,47,64,65,73,66,83,91,84,63,95,82,87,80,72,76,59,60,71,18,20,7,7,7,18,7,8,8,8,8,8,8,8,8,8,0,0,0,0,0,0,0,0,0,0,0,0,0,0,0,0,0,0,0,0,0,0,0,0,0,0]} 1. c4 {[%emt 0:01:22]} Nf6 {[%emt 0:00:10]} 2. Nc3 {[%emt 0:00:11]} e5 {[%emt 0:00:10]} 3. Nf3 {[%emt 0:00:06]} Nc6 {[%emt 0:00:05]} 4. g3 {[%emt 0:00:05]} d5 {[%emt 0:00:06]} 5. cxd5 {[%emt 0:00:05]} Nxd5 {[%emt 0:00:06]} 6. Bg2 {[%emt 0:00:06]} Bc5 {[%emt 0:00:27] A29: English Opening: Four Knights Variation with 4 g3.} 7. d3 {[%emt 0:00:43]} O-O {[%emt 0:00:32]} 8. Bd2 {[%emt 0:00:15]} Nxc3 {[%emt 0:01:13]} 9. Bxc3 {[%emt 0:00:25]} Qe7 {[%emt 0:00:33]} 10. Nd2 $146 {[%emt 0:08:25]} ({Predecessor:} 10. O-O Bg4 11. Rc1 Bb6 12. Qa4 Bh5 13. Rfe1 f5 14. d4 e4 15. Ne5 Nxe5 16. dxe5 {½-½ Ahmed,M (2051)-Subrota,B (2248) Dhaka Sheikh Russel op 2021 (2)}) 10... Nd4 {[%emt 0:06:20]} 11. e3 {[%emt 0:08:10]} Nb5 {[%emt 0:03:09]} 12. O-O {[%emt 0:04:16]} Rd8 {[%emt 0:06:12]} 13. Qc2 {[%emt 0:17:15]} Bf5 {[%emt 0:11:15]} 14. Ne4 {[%emt 0:03:20]} Bb6 {[%emt 0:06:49]} 15. a4 {[%emt 0:04:01]} Nxc3 {[%emt 0:00:31]} 16. bxc3 {[%emt 0:00:02]} Ba5 {[%emt 0:01:10]} 17. d4 {[%emt 0:08:32]} exd4 {[%emt 0:19:12]} 18. exd4 {[%emt 0:04:45]} Bxe4 {[%emt 0:00:25]} ({Don't go for} 18... Bxc3 $2 19. Qxc3 Qd7 (19... Bxe4 $2 {perishes.} 20. Rfe1 $18) 20. Nc5 Qxd4 21. Qxd4 Rxd4 22. Nxb7 $18 (22. Bxb7 Rad8 $18)) (18... c5 $11 19. dxc5 Rac8) 19. Bxe4 $14 {[%emt 0:00:08]} Bxc3 {[%emt 0:00:10]} 20. Bxh7+ {[%emt 0:00:24]} Kh8 {[%emt 0:00:06]} 21. Qxc3 {[%emt 0:00:21]} Kxh7 {[%emt 0:00:06]} 22. Rfe1 {[%emt 0:00:27]} Qd6 {[%emt 0:15:45]} 23. Re4 {[%emt 0:02:35]} Re8 {[%emt 0:02:07]} (23... Kg8 $11) 24. Rh4+ {[%emt 0:12:56]} (24. Qe1 $16 Rxe4 25. Qxe4+ g6 26. Qxb7 Qxd4 27. Rc1) 24... Kg8 $14 {[%emt 0:00:08]} 25. Qf3 {[%emt 0:00:04]} Rad8 {[%emt 0:08:23]} 26. Qxb7 {[%emt 0:05:06]} (26. Qh5 {with more complications.} Qh6 27. Qf5 g6 28. Qxf7+ Kxf7 29. Rxh6 Kg7 30. Rh4) 26... Qb6 {[%emt 0:00:12]} 27. Qxb6 {[%emt 0:00:23]} cxb6 {[%emt 0:00:15]} 28. Rf4 {[%emt 0:02:32]} g6 {[%emt 0:01:22]} 29. h4 {[%emt 0:02:04]} Kg7 {[%emt 0:02:51]} 30. Kg2 {[%emt 0:01:05]} Rd5 {[%emt 0:05:00]} 31. Rc1 $1 {[%emt 0:01:13]} Red8 {[%emt 0:00:06]} 32. Rc4 {[%emt 0:00:22]} f5 {[%emt 0:04:01]} 33. Kf3 {[%emt 0:00:34]} R8d7 {[%emt 0:00:36]} 34. g4 {[%emt 0:03:38]} a6 {[%emt 0:03:44]} 35. Ke3 {[%emt 0:06:19]} b5 {[%emt 0:01:06]} 36. Rc6 {[%emt 0:00:46]} a5 {[%emt 0:00:40]} 37. gxf5 {[%emt 0:03:27]} gxf5 {[%emt 0:00:06]} 38. axb5 {[%emt 0:00:11]} Rxb5 {[%emt 0:00:05]} 39. Kd3 {[%emt 0:00:09]} ({White should play} 39. Rc5 $16 Rd5 40. Rc4) 39... a4 $11 {[%emt 0:02:03]} 40. Ra6 {[%emt 0:03:02]} Rb3+ $1 {[%emt 0:00:11]} 41. Ke2 {[%emt 0:07:33]} Rb4 {[%emt 0:02:06]} 42. Rxf5 {[%emt 0:04:32]} Rbxd4 {[%emt 0:00:14]} 43. f4 {[%emt 0:01:18]} Rf7 {[%emt 0:01:36]} 44. Rxf7+ {[%emt 0:01:10]} Kxf7 {[%emt 0:00:06]} 45. Kf3 {[%emt 0:00:02]} Rd3+ $1 {[%emt 0:07:38]} 46. Kg4 {[%emt 0:00:14]} a3 {[%emt 0:00:26]} 47. h5 {[%emt 0:03:07]} Kg7 {[%emt 0:03:36]} 48. f5 {[%emt 0:03:35]} Rb3 {[%emt 0:04:54]} 49. Kf4 {[%emt 0:02:42]} Rh3 {[%emt 0:02:08]} 50. Ke5 {[%emt 0:01:19]} Re3+ {[%emt 0:00:23]} 51. Kf4 {[%emt 0:00:23]} Rh3 {[%emt 0:00:05]} 52. Kg4 {[%emt 0:00:03]} Rb3 {[%emt 0:00:12]} 53. f6+ {[%emt 0:02:04]} Kf7 {[%emt 0:00:59]} 54. h6 {[%emt 0:00:06]} Rb4+ {[%emt 0:00:15]} 55. Kf5 {[%emt 0:00:06]} Rb5+ {[%emt 0:00:05]} 56. Ke4 {[%emt 0:00:02]} Rh5 {[%emt 0:00:38]} 57. Rxa3 {[%emt 0:00:16]} Rxh6 {[%emt 0:00:04]} 58. Ra6 {[%emt 0:00:03]} Rxf6 {[%emt 0:00:07]} 59. Rxf6+ {[%emt 0:00:02]} Kxf6 {[%emt 0:00:06]} 1/2-1/2

[Event "Prague Festival Masters 2024"]
[Site "Prague"]
[Date "2024.03.07"]
[Round "9.4"]
[White "Rapport, Richard"]
[Black "Abdusattorov, Nodirbek"]
[Result "1/2-1/2"]
[ECO "C01"]
[WhiteElo "2717"]
[BlackElo "2727"]
[Annotator "TA"]
[PlyCount "76"]
[EventDate "2024.02.22"]
[EventType "tourn"]
[EventCountry "CZE"]
[SourceTitle "playchess.com"]
[Source "ChessBase"]
[SourceQuality "1"]
[TimeControl "40/5400+30:1800+30"]

{[%evp 17,76,0,12,17,14,0,13,0,6,0,0,0,7,0,0,-3,2,-1,14,15,10,8,18,9,7,8,8,10,25,24,15,13,28,28,17,25,41,30,40,0,0,0,0,0,0,0,0,0,0,0,0,0,0,0,0,0,0,0,0,0,0]} 1. e4 {[%emt 0:00:04]} e5 {[%emt 0:00:08]} 2. Nf3 {[%emt 0:00:10]} Nf6 {[%emt 0:00:19]} 3. Nxe5 {[%emt 0:02:54]} d6 {[%emt 0:00:07]} 4. Nf3 {[%emt 0:00:07]} Nxe4 {[%emt 0:00:06]} 5. d3 {[%emt 0:00:06]} Nf6 {[%emt 0:00:07]} 6. d4 {[%emt 0:00:05]} d5 {[%emt 0:00:49]} 7. Bd3 {[%emt 0:00:08]} Bd6 {[%emt 0:00:05]} 8. O-O {[%emt 0:02:28]} O-O {[%emt 0:00:06]} 9. h3 {[%emt 0:00:09]} Re8 {[%emt 0:01:05]} 10. Bg5 {[%emt 0:03:58]} c6 {[%emt 0:04:33]} 11. c4 {[%emt 0:15:58]} dxc4 {[%emt 0:03:11]} 12. Bxc4 {[%emt 0:00:39]} Be6 {[%emt 0:01:33]} 13. Bxe6 {[%emt 0:00:59]} Rxe6 {[%emt 0:00:07]} 14. Nc3 {[%emt 0:00:27]} Nbd7 {[%emt 0:00:56]} 15. d5 {[%emt 0:00:58]} cxd5 {[%emt 0:00:17]} 16. Nd4 {[%emt 0:12:44]} Re8 {[%emt 0:01:00]} 17. Nxd5 {[%emt 0:00:22]} Re5 {[%emt 0:00:14] Dodges Nf5} 18. Nxf6+ {[%emt 0:00:41]} Nxf6 {[%emt 0:00:06]} 19. Nf3 {[%emt 0:00:18]} Re6 {[%emt 0:07:29]} 20. Qb3 {[%emt 0:14:34]} Bc5 {[%emt 0:01:23]} 21. Rfe1 {[%emt 0:07:14]} ({Reject} 21. Qxb7 Rb8 22. Bxf6 Qd6 $17) 21... Qb6 {[%emt 0:07:11]} 22. Qxb6 {[%emt 0:00:48]} axb6 {[%emt 0:04:10]} 23. Rxe6 {[%emt 0:07:21]} fxe6 {[%emt 0:00:14]} 24. a3 {[%emt 0:02:09]} Ne4 {[%emt 0:09:34]} 25. Be3 {[%emt 0:03:02]} Bxe3 {[%emt 0:06:21]} 26. fxe3 $11 {[%emt 0:00:31][%mdl 4096] Endgame. KRN-KRN} Kf7 {[%emt 0:00:30]} 27. Rc1 {[%emt 0:01:40]} Nc5 {[%emt 0:02:26]} 28. b4 {[%emt 0:03:59]} Ne4 {[%emt 0:01:12] The position is equal.} 29. Rc7+ {[%emt 0:02:36]} Kf6 {[%emt 0:00:06]} 30. Rxb7 {[%emt 0:00:58]} Rxa3 {[%emt 0:00:05]} 31. Rxb6 {[%emt 0:00:00] Strongly threatening Nd4.} Rxe3 {[%emt 0:02:44]} 32. b5 {[%emt 0:00:00]} Rb3 {[%emt 0:01:19]} 33. Nd4 {[%emt 0:06:12][%csl LRb3,LRe6]} Rb1+ {[%emt 0:00:40]} 34. Kh2 {[%emt 0:00:02]} Ke5 {[%emt 0:05:31]} 35. Nxe6 {[%emt 0:00:48]} (35. Rxe6+ Kxd4 36. Re7 g6 (36... Rxb5 37. Rxg7 h5 38. Rh7 $17) 37. Rxh7 Rxb5 38. Rd7+ Ke5 39. Re7+ Kf5 $19) 35... g5 $1 {[%emt 0:00:03]} 36. Ng7 {[%emt 0:06:09]} Nd6 {[%emt 0:00:23]} 37. Rb8 {[%emt 0:02:11]} Rxb5 {[%emt 0:00:07]} 38. Rxb5+ {[%emt 0:00:04]} Nxb5 {[%emt 0:00:04] Weighted Error Value: White=0.02 (flawless) /Black=0.05 (flawless) .  Inaccurate:     	White=1     	---        OK:         	White=15    	Black=10     Best:        	---       	Black=3      Strong:       	---       	Black=1} 1/2-1/2

[Event "Prague Festival Masters 2024"]
[Site "Prague"]
[Date "2024.03.07"]
[Round "9.5"]
[White "Nguyen, Thai Dai Van"]
[Black "Vidit, Santosh Gujrathi"]
[Result "1/2-1/2"]
[ECO "B31"]
[WhiteElo "2632"]
[BlackElo "2742"]
[Annotator "TA"]
[PlyCount "61"]
[EventDate "2024.02.22"]
[EventType "tourn"]
[EventCountry "CZE"]
[SourceTitle "playchess.com"]
[Source "ChessBase"]
[SourceQuality "1"]
[TimeControl "40/5400+30:1800+30"]

{[%evp 16,61,0,8,12,7,25,18,24,28,22,12,48,17,27,31,33,32,105,94,98,56,99,79,109,133,113,122,98,88,88,85,305,267,267,60,52,0,0,0,0,0,0,0,0,0,39,0]} 1. e4 {[%emt 0:00:03]} c5 {[%emt 0:01:08]} 2. Nf3 {[%emt 0:00:03]} Nc6 {[%emt 0:00:08]} 3. Bb5 {[%emt 0:01:28]} g6 {[%emt 0:00:08]} 4. O-O {[%emt 0:00:32]} Bg7 {[%emt 0:00:05]} 5. c3 {[%emt 0:01:39]} Nf6 {[%emt 0:00:19]} 6. Re1 {[%emt 0:00:07]} O-O {[%emt 0:00:19]} 7. h3 {[%emt 0:01:10]} e5 {[%emt 0:26:44]} 8. d4 {[%emt 0:00:12]} cxd4 {[%emt 0:02:41]} 9. cxd4 {[%emt 0:00:47]} Nxd4 {[%emt 0:01:05]} 10. Nxd4 {[%emt 0:00:07]} exd4 {[%emt 0:02:36]} 11. Qxd4 {[%emt 0:12:17]} d6 {[%emt 0:10:19] The position is equal.} 12. Nc3 {[%emt 0:18:51]} Be6 {[%emt 0:01:57][%cal Of6d5]} 13. Qb4 {[%emt 0:13:52]} d5 {[%emt 0:24:30]} 14. e5 {[%emt 0:07:33][%cal Oc1g5] [#] aiming for Bg5!} Nd7 {[%emt 0:02:47]} 15. Bf4 {[%emt 0:00:22]} Rc8 {[%emt 0:00:30]} 16. Rad1 {[%emt 0:02:16]} Nc5 {[%emt 0:00:18]} (16... a6 $14 17. Bf1 Qb6) 17. Be3 {[%emt 0:03:41]} b6 {[%emt 0:00:54]} 18. Qd4 {[%emt 0:01:03][%cal Of2f4] White is much more active.} Qc7 {[%emt 0:03:03]} 19. Bg5 {[%emt 0:06:49]} Ne4 {[%emt 0:01:18]} 20. Nxe4 {[%emt 0:00:13]} dxe4 {[%emt 0:00:05]} 21. Qxe4 {[%emt 0:01:10]} h6 {[%emt 0:10:12]} 22. Bf6 {[%emt 0:04:20]} Bxf6 {[%emt 0:02:15]} 23. exf6 {[%emt 0:00:02]} Bxa2 $2 {[%emt 0:01:13]} (23... Rfd8 $16) 24. Qe3 $18 {[%emt 0:20:46]} Kh7 {[%emt 0:00:06] [#]} 25. Qa3 {[%emt 0:02:24]} ({White has to play} 25. Bd7 $1 $18 {[%cal Rd7c8]} Rcd8 26. Qe7) 25... Qc5 $14 {[%emt 0:00:35]} 26. Qxa2 {[%emt 0:00:41]} (26. Qxa7 $2 {loses.} Bb3 27. Bf1 Bxd1 28. Rxd1 Kg8 $19) ({White should try} 26. Qa4 $1 $14 Bc4 27. Bxc4 Qxc4 28. Qxa7) 26... Qxb5 $11 {[%emt 0:00:01]} 27. Re7 {[%emt 0:00:23]} Kg8 {[%emt 0:02:22]} 28. Rxa7 {[%emt 0:00:28]} Qf5 {[%emt 0:01:26]} 29. Qb3 {[%emt 0:00:40]} Qxf6 {[%emt 0:00:18]} 30. Rad7 {[%emt 0:00:14]} Rfd8 {[%emt 0:03:21] Hoping for ...Rxd7.} 31. Rxd8+ {[%emt 0:00:34] Weighted Error Value: White=0.23 (precise) /Black=0.26 (precise) .  Loses game:     	---       	Black=1      Missed win:     	White=1     	---        Mistake:       	White=1     	Black=1      Inaccurate:     	White=2     	Black=3      OK:         	White=7     	Black=8      Best:        	White=1     	Black=2} (31. Qc3 $5 Qg5 32. g3 $14) 1/2-1/2